[Event "Titled Tuesday Blitz November 22 Late 2022"]
[White "Goltsev, Dmitry"]
[Black "Souleidis, Georgios"]
[WhiteFideId "24176710"]
[BlackFideId "4206827"]
[WhiteElo "2289"]
[BlackElo "2401"]
[Result "1-0"]
[Round "08"]
[TimeControl "180+1"]
[Date "2022.11.22"]
[WhiteClock "0:01:35"]
[BlackClock "0:00:01"]

1. e4 {[%clk 0:03:00]}  c5 {[%clk 0:02:59]} 2. Nf3 {[%clk 0:03:01]}  e6 {[%clk 0:02:59]} 3. d4 {[%clk 0:03:01]}  cxd4 {[%clk 0:03:00]} 4. Nxd4 {[%clk 0:03:02]}  Nf6 {[%clk 0:03:00]} 5. Nc3 {[%clk 0:03:02]}  Nc6 {[%clk 0:03:01]} 6. Be2 {[%clk 0:03:03]}  Be7 {[%clk 0:02:51]} 7. O-O {[%clk 0:03:03]}  d6 {[%clk 0:02:50]} 8. Be3 {[%clk 0:03:03]}  O-O {[%clk 0:02:50]} 9. f4 {[%clk 0:03:03]}  a6 {[%clk 0:02:51]} 10. Bf3 {[%clk 0:03:02]}  Qc7 {[%clk 0:02:51]} 11. g4 {[%clk 0:03:01]}  Nd7 {[%clk 0:02:50]} 12. f5 {[%clk 0:02:59]}  Nde5 {[%clk 0:02:48]} 13. Be2 {[%clk 0:02:55]}  Bd7 {[%clk 0:02:39]} 14. g5 {[%clk 0:02:55]}  Rfe8 {[%clk 0:02:33]} 15. f6 {[%clk 0:02:55]}  Bf8 {[%clk 0:02:33]} 16. Kh1 {[%clk 0:02:53]}  Rac8 {[%clk 0:02:27]} 17. Rg1 {[%clk 0:02:54]}  b5 {[%clk 0:02:18]} 18. a3 {[%clk 0:02:52]}  Nxd4 {[%clk 0:02:13]} 19. Bxd4 {[%clk 0:02:51]}  Bc6 {[%clk 0:02:12]} 20. Qe1 {[%clk 0:02:48]}  Qb7 {[%clk 0:01:56]} 21. Qh4 {[%clk 0:02:39]}  Ng6 {[%clk 0:01:55]} 22. Qg4 {[%clk 0:02:39]}  e5 {[%clk 0:01:45]} 23. Be3 {[%clk 0:02:39]}  a5 {[%clk 0:01:28]} 24. h4 {[%clk 0:02:28]}  Ra8 {[%clk 0:01:10]} 25. h5 {[%clk 0:02:28]}  Nf4 {[%clk 0:01:10]} 26. Bxf4 {[%clk 0:02:21]}  exf4 {[%clk 0:01:11]} 27. Bf3 {[%clk 0:02:22]}  b4 {[%clk 0:01:06]} 28. g6 {[%clk 0:02:15]}  fxg6 {[%clk 0:00:48]} 29. hxg6 {[%clk 0:02:13]}  bxc3 {[%clk 0:00:38]} 30. f7+ {[%clk 0:02:11]}  Kh8 {[%clk 0:00:39]} 31. fxe8=Q {[%clk 0:02:06]}  Rxe8 {[%clk 0:00:39]} 32. bxc3 {[%clk 0:02:00]}  Bxe4 {[%clk 0:00:39]} 33. Rgf1 {[%clk 0:01:54]}  Bxf3+ {[%clk 0:00:30]} 34. Qxf3 {[%clk 0:01:54]}  Qd7 {[%clk 0:00:18]} 35. Rae1 {[%clk 0:01:53]}  Re5 {[%clk 0:00:13]} 36. Qxf4 {[%clk 0:01:44]}  Qh3+ {[%clk 0:00:12]} 37. Kg1 {[%clk 0:01:41]}  hxg6 {[%clk 0:00:04]} 38. Qxf8+ {[%clk 0:01:39]}  Kh7 {[%clk 0:00:05]} 39. Qf4 {[%clk 0:01:36]}  Qh5 {[%clk 0:00:01]} 40. Rxe5 {[%clk 0:01:35]} 1-0


[Site "https://www.chess.com"]

[Event "Titled Tuesday Blitz November 22 Late 2022"]
[White "Goroshkov, Maksym"]
[Black "Todev, Simeon"]
[WhiteFideId "14142716"]
[BlackFideId "2925133"]
[WhiteElo "2257"]
[BlackElo "1938"]
[Result "0-1"]
[Round "08"]
[TimeControl "180+1"]
[Date "2022.11.23"]
[WhiteClock "0:01:26"]
[BlackClock "0:00:31"]

1. e4 {[%clk 0:02:58]}  c5 {[%clk 0:03:00]} 2. d4 {[%clk 0:02:58]}  cxd4 {[%clk 0:02:59]} 3. c3 {[%clk 0:02:59]}  dxc3 {[%clk 0:02:59]} 4. Nxc3 {[%clk 0:02:59]}  Nc6 {[%clk 0:02:56]} 5. Nf3 {[%clk 0:02:59]}  e6 {[%clk 0:02:56]} 6. Bc4 {[%clk 0:02:59]}  Nge7 {[%clk 0:02:56]} 7. O-O {[%clk 0:02:58]}  Ng6 {[%clk 0:02:55]} 8. Qe2 {[%clk 0:02:58]}  a6 {[%clk 0:02:55]} 9. a4 {[%clk 0:02:58]}  Bc5 {[%clk 0:02:51]} 10. Rd1 {[%clk 0:02:57]}  O-O {[%clk 0:02:49]} 11. Be3 {[%clk 0:02:54]}  Bxe3 {[%clk 0:02:47]} 12. Qxe3 {[%clk 0:02:54]}  Qe7 {[%clk 0:02:40]} 13. Rac1 {[%clk 0:02:48]}  Qb4 {[%clk 0:02:36]} 14. Na2 {[%clk 0:02:25]}  Qxa4 {[%clk 0:02:23]} 15. Qb6 {[%clk 0:02:17]}  Qa5 {[%clk 0:01:54]} 16. Qe3 {[%clk 0:02:12]}  Nge5 {[%clk 0:01:39]} 17. Be2 {[%clk 0:02:08]}  Nxf3+ {[%clk 0:01:36]} 18. Bxf3 {[%clk 0:02:05]}  Qxa2 {[%clk 0:01:35]} 19. Qc3 {[%clk 0:02:04]}  Qa5 {[%clk 0:01:33]} 20. Qc2 {[%clk 0:02:01]}  Qe5 {[%clk 0:01:32]} 21. Qd2 {[%clk 0:01:57]}  d5 {[%clk 0:01:26]} 22. exd5 {[%clk 0:01:56]}  exd5 {[%clk 0:01:27]} 23. Bxd5 {[%clk 0:01:55]}  Be6 {[%clk 0:01:25]} 24. Bxc6 {[%clk 0:01:50]}  bxc6 {[%clk 0:01:26]} 25. Rxc6 {[%clk 0:01:48]}  a5 {[%clk 0:01:20]} 26. Rc3 {[%clk 0:01:48]}  a4 {[%clk 0:01:19]} 27. h3 {[%clk 0:01:46]}  h6 {[%clk 0:01:18]} 28. Rg3 {[%clk 0:01:45]}  Kh8 {[%clk 0:01:13]} 29. Re1 {[%clk 0:01:44]}  Qf6 {[%clk 0:01:10]} 30. Rf3 {[%clk 0:01:42]}  Qg5 {[%clk 0:01:07]} 31. Qd6 {[%clk 0:01:39]}  Rfd8 {[%clk 0:01:04]} 32. Qa3 {[%clk 0:01:36]}  Qd2 {[%clk 0:01:01]} 33. Ra1 {[%clk 0:01:32]}  Rdb8 {[%clk 0:00:57]} 34. b4 {[%clk 0:01:19]}  axb3 {[%clk 0:00:55]} 35. Qxa8 {[%clk 0:01:19]}  Rxa8 {[%clk 0:00:55]} 36. Rxa8+ {[%clk 0:01:19]}  Kh7 {[%clk 0:00:55]} 37. Rb8 {[%clk 0:01:19]}  Qd1+ {[%clk 0:00:53]} 38. Kh2 {[%clk 0:01:18]}  Qd6+ {[%clk 0:00:54]} 39. g3 {[%clk 0:01:18]}  Qxb8 {[%clk 0:00:55]} 40. h4 {[%clk 0:01:18]}  Bd5 {[%clk 0:00:55]} 41. Rd3 {[%clk 0:01:18]}  b2 {[%clk 0:00:51]} 42. Rd1 {[%clk 0:01:18]}  b1=Q {[%clk 0:00:52]} 43. Rxb1 {[%clk 0:01:19]}  Qxb1 {[%clk 0:00:51]} 44. g4 {[%clk 0:01:20]}  Qe4 {[%clk 0:00:48]} 45. f3 {[%clk 0:01:18]}  Qf4+ {[%clk 0:00:47]} 46. Kg1 {[%clk 0:01:18]}  Qxg4+ {[%clk 0:00:45]} 47. fxg4 {[%clk 0:01:18]}  Bf3 {[%clk 0:00:45]} 48. g5 {[%clk 0:01:18]}  hxg5 {[%clk 0:00:45]} 49. hxg5 {[%clk 0:01:19]}  Kg6 {[%clk 0:00:45]} 50. Kf2 {[%clk 0:01:19]}  Bh5 {[%clk 0:00:45]} 51. Kg3 {[%clk 0:01:20]}  Kxg5 {[%clk 0:00:45]} 52. Kh3 {[%clk 0:01:20]}  f5 {[%clk 0:00:46]} 53. Kg3 {[%clk 0:01:21]}  f4+ {[%clk 0:00:47]} 54. Kf2 {[%clk 0:01:21]}  Kg4 {[%clk 0:00:47]} 55. Kg2 {[%clk 0:01:22]}  Bf7 {[%clk 0:00:47]} 56. Kf2 {[%clk 0:01:22]}  g5 {[%clk 0:00:46]} 57. Kg2 {[%clk 0:01:23]}  Bd5+ {[%clk 0:00:47]} 58. Kf2 {[%clk 0:01:23]}  f3 {[%clk 0:00:46]} 59. Kf1 {[%clk 0:01:22]}  Kg3 {[%clk 0:00:46]} 60. Ke1 {[%clk 0:01:23]}  f2+ {[%clk 0:00:45]} 61. Ke2 {[%clk 0:01:23]}  Bf3+ {[%clk 0:00:44]} 62. Ke3 {[%clk 0:01:24]}  f1=Q {[%clk 0:00:43]} 63. Kd4 {[%clk 0:01:24]}  Qe2 {[%clk 0:00:44]} 64. Kc5 {[%clk 0:01:24]}  g4 {[%clk 0:00:44]} 65. Kd6 {[%clk 0:01:25]}  Qe4 {[%clk 0:00:43]} 66. Kc5 {[%clk 0:01:25]}  Qd5+ {[%clk 0:00:43]} 67. Kb4 {[%clk 0:01:25]}  Kf2 {[%clk 0:00:44]} 68. Kc3 {[%clk 0:01:25]}  Ke3 {[%clk 0:00:44]} 69. Kb2 {[%clk 0:01:25]}  Qd2+ {[%clk 0:00:43]} 70. Ka1 {[%clk 0:01:25]}  Qc3+ {[%clk 0:00:40]} 71. Ka2 {[%clk 0:01:25]}  Bd5+ {[%clk 0:00:40]} 72. Kb1 {[%clk 0:01:25]}  Qd2 {[%clk 0:00:31]} 73. Ka1 {[%clk 0:01:26]}  Qa2# {[%clk 0:00:31]} 0-1


[Site "https://www.chess.com"]

[Event "Titled Tuesday Blitz November 22 Late 2022"]
[White "Gundam, Rohit"]
[Black "Floresvillar Gonzalez, Luis Migu"]
[WhiteFideId "75002809"]
[BlackFideId "5100542"]
[WhiteElo "2397"]
[BlackElo "2040"]
[Result "1-0"]
[Round "08"]
[TimeControl "180+1"]
[Date "2022.11.23"]
[WhiteClock "0:01:03"]
[BlackClock "0:00:51"]

1. d4 {[%clk 0:02:57]}  Nf6 {[%clk 0:02:58]} 2. Nf3 {[%clk 0:02:58]}  d5 {[%clk 0:02:56]} 3. c4 {[%clk 0:02:58]}  c6 {[%clk 0:02:56]} 4. Nc3 {[%clk 0:02:59]}  dxc4 {[%clk 0:02:55]} 5. a4 {[%clk 0:02:58]}  Bf5 {[%clk 0:02:55]} 6. Ne5 {[%clk 0:02:57]}  e6 {[%clk 0:02:55]} 7. f3 {[%clk 0:02:50]}  Nbd7 {[%clk 0:02:53]} 8. Nxc4 {[%clk 0:02:49]}  Bb4 {[%clk 0:02:52]} 9. e4 {[%clk 0:02:48]}  Nxe4 {[%clk 0:02:47]} 10. fxe4 {[%clk 0:02:41]}  Qh4+ {[%clk 0:02:46]} 11. Kd2 {[%clk 0:02:31]}  Bxe4 {[%clk 0:02:39]} 12. Qe1 {[%clk 0:02:27]}  Qxe1+ {[%clk 0:02:23]} 13. Kxe1 {[%clk 0:02:27]}  O-O-O {[%clk 0:02:21]} 14. Bd2 {[%clk 0:02:23]}  Bd5 {[%clk 0:02:18]} 15. Nxd5 {[%clk 0:02:17]}  Bxd2+ {[%clk 0:02:17]} 16. Nxd2 {[%clk 0:02:16]}  exd5 {[%clk 0:02:16]} 17. Bd3 {[%clk 0:02:08]}  Rhe8+ {[%clk 0:02:14]} 18. Kf2 {[%clk 0:02:06]}  Re6 {[%clk 0:02:13]} 19. Rhe1 {[%clk 0:01:59]}  Rde8 {[%clk 0:02:09]} 20. Rxe6 {[%clk 0:01:58]}  Rxe6 {[%clk 0:02:09]} 21. Re1 {[%clk 0:01:58]}  Rxe1 {[%clk 0:01:59]} 22. Kxe1 {[%clk 0:01:59]}  a5 {[%clk 0:01:58]} 23. Bxh7 {[%clk 0:01:52]}  g6 {[%clk 0:01:57]} 24. Bg8 {[%clk 0:01:52]}  Nb6 {[%clk 0:01:49]} 25. b3 {[%clk 0:01:45]}  f6 {[%clk 0:01:40]} 26. Bf7 {[%clk 0:01:45]}  g5 {[%clk 0:01:39]} 27. Be6+ {[%clk 0:01:37]}  Kc7 {[%clk 0:01:37]} 28. g3 {[%clk 0:01:35]}  Kd6 {[%clk 0:01:38]} 29. Bf5 {[%clk 0:01:34]}  Na8 {[%clk 0:01:34]} 30. h4 {[%clk 0:01:34]}  gxh4 {[%clk 0:01:32]} 31. gxh4 {[%clk 0:01:35]}  Ke7 {[%clk 0:01:29]} 32. h5 {[%clk 0:01:31]}  Kf7 {[%clk 0:01:27]} 33. h6 {[%clk 0:01:31]}  b5 {[%clk 0:01:25]} 34. axb5 {[%clk 0:01:16]}  cxb5 {[%clk 0:01:25]} 35. Ke2 {[%clk 0:01:15]}  a4 {[%clk 0:01:25]} 36. bxa4 {[%clk 0:01:15]}  bxa4 {[%clk 0:01:25]} 37. Kd3 {[%clk 0:01:15]}  Nb6 {[%clk 0:01:20]} 38. Kc3 {[%clk 0:01:14]}  Kg8 {[%clk 0:01:00]} 39. Kb4 {[%clk 0:01:11]}  Kf7 {[%clk 0:01:00]} 40. Kc5 {[%clk 0:01:03]}  a3 {[%clk 0:00:52]} 41. Kxb6 {[%clk 0:01:03]}  a2 {[%clk 0:00:51]} 42. Nb3 {[%clk 0:01:03]} 1-0


[Site "https://www.chess.com"]

[Event "Titled Tuesday Blitz November 22 Late 2022"]
[White "Hardaway, Brewington"]
[Black "Czopor, Maciej"]
[WhiteFideId "30941849"]
[BlackFideId "21805431"]
[WhiteElo "2159"]
[BlackElo "2324"]
[Result "1-0"]
[Round "08"]
[TimeControl "180+1"]
[Date "2022.11.23"]
[WhiteClock "0:00:29"]
[BlackClock "0:01:06"]

1. e4 {[%clk 0:02:57]}  c6 {[%clk 0:02:58]} 2. c4 {[%clk 0:02:54]}  g6 {[%clk 0:02:58]} 3. Nc3 {[%clk 0:02:54]}  Bg7 {[%clk 0:02:58]} 4. d4 {[%clk 0:02:55]}  d6 {[%clk 0:02:59]} 5. Nf3 {[%clk 0:02:55]}  Nf6 {[%clk 0:02:59]} 6. Be2 {[%clk 0:02:56]}  O-O {[%clk 0:02:59]} 7. O-O {[%clk 0:02:56]}  Nbd7 {[%clk 0:03:00]} 8. h3 {[%clk 0:02:57]}  e5 {[%clk 0:03:00]} 9. d5 {[%clk 0:02:57]}  c5 {[%clk 0:02:57]} 10. Ne1 {[%clk 0:02:52]}  Ne8 {[%clk 0:02:57]} 11. Nd3 {[%clk 0:02:51]}  Nc7 {[%clk 0:02:56]} 12. b4 {[%clk 0:02:51]}  cxb4 {[%clk 0:02:52]} 13. Nxb4 {[%clk 0:02:51]}  Nc5 {[%clk 0:02:50]} 14. Be3 {[%clk 0:02:50]}  f5 {[%clk 0:02:46]} 15. exf5 {[%clk 0:02:49]}  gxf5 {[%clk 0:02:45]} 16. Rc1 {[%clk 0:02:45]}  Qh4 {[%clk 0:02:28]} 17. Bxc5 {[%clk 0:02:34]}  dxc5 {[%clk 0:02:28]} 18. Nd3 {[%clk 0:02:34]}  b6 {[%clk 0:02:21]} 19. d6 {[%clk 0:02:29]}  Ne6 {[%clk 0:02:21]} 20. Nd5 {[%clk 0:02:29]}  Nd4 {[%clk 0:02:18]} 21. f4 {[%clk 0:02:24]}  e4 {[%clk 0:02:11]} 22. Ne5 {[%clk 0:02:24]}  Bb7 {[%clk 0:02:00]} 23. Ne7+ {[%clk 0:02:17]}  Kh8 {[%clk 0:01:59]} 24. N7g6+ {[%clk 0:02:18]}  hxg6 {[%clk 0:01:59]} 25. Nxg6+ {[%clk 0:02:19]}  Kh7 {[%clk 0:01:59]} 26. Nxh4 {[%clk 0:02:19]}  Rad8 {[%clk 0:01:58]} 27. Bg4 {[%clk 0:01:21]}  fxg4 {[%clk 0:01:51]} 28. Qxg4 {[%clk 0:01:20]}  Rxd6 {[%clk 0:01:50]} 29. f5 {[%clk 0:01:19]}  e3 {[%clk 0:01:42]} 30. Ng6 {[%clk 0:01:15]}  e2 {[%clk 0:01:28]} 31. Nxf8+ {[%clk 0:01:11]}  Bxf8 {[%clk 0:01:28]} 32. Rfe1 {[%clk 0:00:58]}  Bh6 {[%clk 0:01:28]} 33. Rxe2 {[%clk 0:00:53]}  Nxe2+ {[%clk 0:01:23]} 34. Qxe2 {[%clk 0:00:54]}  Rd7 {[%clk 0:01:17]} 35. Rd1 {[%clk 0:00:48]}  Rg7 {[%clk 0:01:17]} 36. g4 {[%clk 0:00:47]}  Bg5 {[%clk 0:01:17]} 37. Rd6 {[%clk 0:00:44]}  Re7 {[%clk 0:01:10]} 38. Qxe7+ {[%clk 0:00:44]}  Bxe7 {[%clk 0:01:10]} 39. Rd7 {[%clk 0:00:44]}  Ba6 {[%clk 0:01:08]} 40. Rxe7+ {[%clk 0:00:43]}  Kh6 {[%clk 0:01:08]} 41. h4 {[%clk 0:00:28]}  Bxc4 {[%clk 0:01:08]} 42. Kf2 {[%clk 0:00:28]}  Bxa2 {[%clk 0:01:07]} 43. Kg3 {[%clk 0:00:27]}  c4 {[%clk 0:01:06]} 44. g5+ {[%clk 0:00:28]}  Kh5 {[%clk 0:01:06]} 45. Rh7# {[%clk 0:00:29]} 1-0


[Site "https://www.chess.com"]

[Event "Titled Tuesday Blitz November 22 Late 2022"]
[White "Haszon, David"]
[Black "Averjanov, Alexey"]
[WhiteFideId "733610"]
[BlackFideId "14109867"]
[WhiteElo "2211"]
[BlackElo "2597"]
[Result "1-0"]
[Round "08"]
[TimeControl "180+1"]
[Date "2022.11.23"]
[WhiteClock "0:00:05"]
[BlackClock "0:00:04"]

1. e4 {[%clk 0:03:00]}  c6 {[%clk 0:03:00]} 2. d4 {[%clk 0:02:58]}  d5 {[%clk 0:03:01]} 3. e5 {[%clk 0:02:59]}  Bf5 {[%clk 0:03:00]} 4. Nf3 {[%clk 0:02:59]}  e6 {[%clk 0:03:00]} 5. Be2 {[%clk 0:02:59]}  Nd7 {[%clk 0:03:00]} 6. O-O {[%clk 0:02:59]}  h6 {[%clk 0:03:00]} 7. b3 {[%clk 0:02:58]}  Ne7 {[%clk 0:02:59]} 8. c4 {[%clk 0:02:58]}  c5 {[%clk 0:02:59]} 9. Nc3 {[%clk 0:02:52]}  dxc4 {[%clk 0:02:58]} 10. Nb5 {[%clk 0:02:44]}  Nc6 {[%clk 0:02:56]} 11. d5 {[%clk 0:02:42]}  exd5 {[%clk 0:02:50]} 12. Qxd5 {[%clk 0:02:34]}  Nb6 {[%clk 0:02:43]} 13. Qxd8+ {[%clk 0:02:23]}  Rxd8 {[%clk 0:02:44]} 14. bxc4 {[%clk 0:02:22]}  Be7 {[%clk 0:02:41]} 15. Nc7+ {[%clk 0:02:18]}  Kd7 {[%clk 0:02:31]} 16. Nd5 {[%clk 0:02:14]}  Be6 {[%clk 0:02:31]} 17. Nxe7 {[%clk 0:02:13]}  Kxe7 {[%clk 0:02:30]} 18. Be3 {[%clk 0:02:13]}  Nd4 {[%clk 0:02:26]} 19. Bxd4 {[%clk 0:01:59]}  cxd4 {[%clk 0:02:25]} 20. c5 {[%clk 0:01:50]}  d3 {[%clk 0:02:21]} 21. Bxd3 {[%clk 0:01:38]}  Rxd3 {[%clk 0:02:20]} 22. cxb6 {[%clk 0:01:39]}  axb6 {[%clk 0:02:19]} 23. Rfb1 {[%clk 0:01:33]}  Ra8 {[%clk 0:02:07]} 24. Rxb6 {[%clk 0:01:32]}  Bd5 {[%clk 0:02:04]} 25. Ne1 {[%clk 0:01:21]}  Rda3 {[%clk 0:01:59]} 26. Rb5 {[%clk 0:01:15]}  Ke6 {[%clk 0:01:46]} 27. f4 {[%clk 0:00:50]}  Rxa2 {[%clk 0:01:35]} 28. Rxa2 {[%clk 0:00:48]}  Rxa2 {[%clk 0:01:31]} 29. g4 {[%clk 0:00:49]}  Ra4 {[%clk 0:01:10]} 30. Nd3 {[%clk 0:00:46]}  Rd4 {[%clk 0:01:09]} 31. Nc5+ {[%clk 0:00:44]}  Ke7 {[%clk 0:01:09]} 32. Nxb7 {[%clk 0:00:39]}  Bc6 {[%clk 0:00:58]} 33. Rb6 {[%clk 0:00:32]}  Bf3 {[%clk 0:00:45]} 34. Kf2 {[%clk 0:00:28]}  Bxg4 {[%clk 0:00:38]} 35. Ke3 {[%clk 0:00:26]}  Rd7 {[%clk 0:00:36]} 36. Nc5 {[%clk 0:00:26]}  Ra7 {[%clk 0:00:34]} 37. Ne4 {[%clk 0:00:22]}  Be6 {[%clk 0:00:29]} 38. Ng3 {[%clk 0:00:20]}  g6 {[%clk 0:00:26]} 39. Ne4 {[%clk 0:00:18]}  Ra3+ {[%clk 0:00:26]} 40. Kd4 {[%clk 0:00:18]}  Ra4+ {[%clk 0:00:24]} 41. Ke3 {[%clk 0:00:19]}  Ra3+ {[%clk 0:00:19]} 42. Kd4 {[%clk 0:00:18]}  Rf3 {[%clk 0:00:17]} 43. Rb7+ {[%clk 0:00:17]}  Kd8 {[%clk 0:00:17]} 44. Nf6 {[%clk 0:00:10]}  Rxf4+ {[%clk 0:00:17]} 45. Kc5 {[%clk 0:00:11]}  Rc4+ {[%clk 0:00:15]} 46. Kd6 {[%clk 0:00:09]}  Rd4+ {[%clk 0:00:16]} 47. Kc5 {[%clk 0:00:09]}  Rd2 {[%clk 0:00:14]} 48. Rb8+ {[%clk 0:00:08]}  Kc7 {[%clk 0:00:14]} 49. Ra8 {[%clk 0:00:04]}  Rxh2 {[%clk 0:00:13]} 50. Ra7+ {[%clk 0:00:04]}  Kb8 {[%clk 0:00:13]} 51. Re7 {[%clk 0:00:03]}  Re2 {[%clk 0:00:12]} 52. Kd6 {[%clk 0:00:03]}  Rd2+ {[%clk 0:00:12]} 53. Kc6 {[%clk 0:00:03]}  h5 {[%clk 0:00:10]} 54. Re8+ {[%clk 0:00:03]}  Ka7 {[%clk 0:00:10]} 55. Re7+ {[%clk 0:00:03]}  Ka6 {[%clk 0:00:10]} 56. Re8 {[%clk 0:00:04]}  Ka5 {[%clk 0:00:09]} 57. Kc5 {[%clk 0:00:04]}  Ka4 {[%clk 0:00:08]} 58. Ne4 {[%clk 0:00:03]}  Rc2+ {[%clk 0:00:07]} 59. Kd4 {[%clk 0:00:03]}  h4 {[%clk 0:00:05]} 60. Nc5+ {[%clk 0:00:03]}  Ka3 {[%clk 0:00:05]} 61. Nxe6 {[%clk 0:00:03]}  fxe6 {[%clk 0:00:05]} 62. Rxe6 {[%clk 0:00:04]}  g5 {[%clk 0:00:04]} 63. Rh6 {[%clk 0:00:05]} 1-0


[Site "https://www.chess.com"]

[Event "Titled Tuesday Blitz November 22 Late 2022"]
[White "Kirillov, Dmitry"]
[Black "Arnold, Ken"]
[WhiteFideId "34180572"]
[BlackFideId "2056836"]
[WhiteElo "2095"]
[BlackElo "2364"]
[Result "1/2-1/2"]
[Round "08"]
[TimeControl "180+1"]
[Date "2022.11.23"]
[WhiteClock "0:00:05"]
[BlackClock "0:00:05"]

1. e4 {[%clk 0:03:00]}  c6 {[%clk 0:02:59]} 2. d4 {[%clk 0:02:53]}  d5 {[%clk 0:02:59]} 3. Nc3 {[%clk 0:02:54]}  dxe4 {[%clk 0:02:59]} 4. Nxe4 {[%clk 0:02:55]}  Nf6 {[%clk 0:02:59]} 5. Nxf6+ {[%clk 0:02:54]}  exf6 {[%clk 0:02:59]} 6. c3 {[%clk 0:02:55]}  Bd6 {[%clk 0:02:59]} 7. Bd3 {[%clk 0:02:54]}  Qc7 {[%clk 0:02:58]} 8. Ne2 {[%clk 0:02:40]}  Be6 {[%clk 0:02:57]} 9. Qc2 {[%clk 0:02:39]}  g6 {[%clk 0:02:50]} 10. Bh6 {[%clk 0:02:33]}  Nd7 {[%clk 0:02:50]} 11. O-O-O {[%clk 0:02:29]}  O-O-O {[%clk 0:02:49]} 12. h4 {[%clk 0:02:28]}  Rhe8 {[%clk 0:02:49]} 13. Kb1 {[%clk 0:02:24]}  Qa5 {[%clk 0:02:45]} 14. b3 {[%clk 0:02:07]}  f5 {[%clk 0:02:36]} 15. Bf4 {[%clk 0:01:54]}  Qc7 {[%clk 0:02:32]} 16. Bxd6 {[%clk 0:01:50]}  Qxd6 {[%clk 0:02:32]} 17. Rhe1 {[%clk 0:01:46]}  Nf6 {[%clk 0:02:30]} 18. g3 {[%clk 0:01:36]}  Nd5 {[%clk 0:02:16]} 19. Kb2 {[%clk 0:01:23]}  f4 {[%clk 0:02:13]} 20. a3 {[%clk 0:01:12]}  fxg3 {[%clk 0:02:09]} 21. Nxg3 {[%clk 0:01:11]}  f5 {[%clk 0:01:49]} 22. c4 {[%clk 0:00:47]}  Nf4 {[%clk 0:01:47]} 23. Bf1 {[%clk 0:00:47]}  Bd7 {[%clk 0:01:43]} 24. Qd2 {[%clk 0:00:32]}  Rxe1 {[%clk 0:01:38]} 25. Rxe1 {[%clk 0:00:33]}  Re8 {[%clk 0:01:38]} 26. Rxe8+ {[%clk 0:00:31]}  Bxe8 {[%clk 0:01:38]} 27. Qe3 {[%clk 0:00:29]}  Bf7 {[%clk 0:01:34]} 28. c5 {[%clk 0:00:22]}  Qe6 {[%clk 0:01:06]} 29. Bc4 {[%clk 0:00:14]}  Qxe3 {[%clk 0:01:00]} 30. fxe3 {[%clk 0:00:15]}  Ne6 {[%clk 0:00:39]} 31. Kc3 {[%clk 0:00:10]}  Kd7 {[%clk 0:00:38]} 32. b4 {[%clk 0:00:10]}  Ke7 {[%clk 0:00:36]} 33. e4 {[%clk 0:00:10]}  fxe4 {[%clk 0:00:35]} 34. Nxe4 {[%clk 0:00:11]}  h6 {[%clk 0:00:15]} 35. Nd6 {[%clk 0:00:11]}  b5 {[%clk 0:00:12]} 36. cxb6 {[%clk 0:00:04]}  axb6 {[%clk 0:00:12]} 37. Nc8+ {[%clk 0:00:02]}  Kf6 {[%clk 0:00:12]} 38. Nxb6 {[%clk 0:00:03]}  g5 {[%clk 0:00:11]} 39. Nd7+ {[%clk 0:00:03]}  Ke7 {[%clk 0:00:11]} 40. Ne5 {[%clk 0:00:04]}  Be8 {[%clk 0:00:11]} 41. hxg5 {[%clk 0:00:04]}  hxg5 {[%clk 0:00:11]} 42. a4 {[%clk 0:00:04]}  Kd6 {[%clk 0:00:11]} 43. a5 {[%clk 0:00:04]}  Nc7 {[%clk 0:00:09]} 44. Ng4 {[%clk 0:00:04]}  Bd7 {[%clk 0:00:09]} 45. Ne5 {[%clk 0:00:05]}  Be6 {[%clk 0:00:09]} 46. Bf1 {[%clk 0:00:05]}  g4 {[%clk 0:00:08]} 47. Bg2 {[%clk 0:00:05]}  Bd5 {[%clk 0:00:05]} 48. Bxd5 {[%clk 0:00:04]}  Nxd5+ {[%clk 0:00:06]} 49. Kc4 {[%clk 0:00:05]}  g3 {[%clk 0:00:06]} 50. Nf3 {[%clk 0:00:05]}  g2 {[%clk 0:00:06]} 51. b5 {[%clk 0:00:04]}  cxb5+ {[%clk 0:00:06]} 52. Kxb5 {[%clk 0:00:05]}  Nc3+ {[%clk 0:00:06]} 53. Kb6 {[%clk 0:00:04]}  Na4+ {[%clk 0:00:05]} 54. Kb7 {[%clk 0:00:05]}  Nc3 {[%clk 0:00:04]} 55. a6 {[%clk 0:00:05]}  Nb5 {[%clk 0:00:04]} 56. Kb6 {[%clk 0:00:05]}  Nc7 {[%clk 0:00:05]} 57. a7 {[%clk 0:00:05]}  Nd5+ {[%clk 0:00:05]} 58. Kb7 {[%clk 0:00:05]}  Nc7 {[%clk 0:00:05]} 59. Ng1 {[%clk 0:00:05]}  Kd7 {[%clk 0:00:04]} 60. Ne2 {[%clk 0:00:04]}  Kd6 {[%clk 0:00:04]} 61. Kb8 {[%clk 0:00:04]}  Kd7 {[%clk 0:00:04]} 62. Kb7 {[%clk 0:00:05]}  Kd6 {[%clk 0:00:04]} 63. a8=Q {[%clk 0:00:05]}  Nxa8 {[%clk 0:00:04]} 64. Kxa8 {[%clk 0:00:06]}  Kd5 {[%clk 0:00:05]} 65. Nf4+ {[%clk 0:00:04]}  Kxd4 {[%clk 0:00:05]} 66. Nxg2 {[%clk 0:00:05]} 1/2-1/2


[Site "https://www.chess.com"]